fUSD/lending_fUSD_20240408
["ID","MTS","AMOUNT","RATE_DAILY","PERIOD"]
[321906781,1712606705742,150.0,0.00020018,4]
[321906782,1712606706048,150.0,0.00020179,4]
[321906783,1712606706372,150.0,0.00020341,4]
[321906784,1712606706658,150.0,0.00020502,4]
[321906785,1712606707185,150.0,0.00020663,4]
[321906786,1712606707485,150.0,0.00020825,4]
[321906787,1712606709121,201.29581169,0.00020986,4]
[321906788,1712606710955,150.0,0.00019587,4]
[321906789,1712606711304,150.0,0.00020287,4]
[321906790,1712606711558,150.0,0.00020986,4]
[321906791,1712606717689,150.0,0.00019307,4]
[321906792,1712606717984,150.0,0.00019727,4]
[321906793,1712606718474,150.0,0.00020147,4]
[321906794,1712606719636,150.0,0.00020567,4]
[321906795,1712606719743,171.894867,0.00020986,4]
[321906796,1712606785553,10000.0,0.000297,60]
[321906797,1712606798025,460.0,0.00021,5]
[321906798,1712606822604,5000.0,0.000297,120]
[321906804,1712606883156,10000.0,0.0002651,20]
[321906805,1712606929556,12459.26340059,0.000205,5]
[321906888,1712606967875,846.64,0.00016848,2]
[321906896,1712607031919,-155.0,0.0001872,2]
[321906897,1712607031928,-251.00256486,0.0001872,2]
[321906898,1712607031937,-500.0,0.0001872,2]
[321906899,1712607031946,-443.18970024,0.00018721,2]
[321906900,1712607031956,-150.0,0.00018727,2]
[321906901,1712607031966,-279.58463945,0.00018728,2]
[321906902,1712607032079,-421.97950892,0.00018728,2]
[321906903,1712607032095,-400.16219829,0.00018728,2]
[321906904,1712607032107,-22798.27365334,0.00018728,2]
[321906905,1712607032116,-360.0,0.00018776,2]
[321906906,1712607032126,-171.06,0.00018781,2]
[321906907,1712607032136,-21842.50320574,0.00018804,2]
[321906908,1712607032145,-5875.98,0.00018805,2]
[321906909,1712607032154,-238.48,0.00018823,2]
[321906910,1712607032163,-164.55,0.00018825,2]
[321906911,1712607032173,-150.0,0.00018888,2]
[321906912,1712607032182,-150.0,0.00018888,2]
[321906913,1712607032191,-150.0,0.00018888,2]
[321906914,1712607032202,-150.0,0.00018888,2]
[321906915,1712607032211,-150.0,0.00018888,2]
[321906916,1712607032220,-167.26,0.00018977,2]
[321906917,1712607032229,-499.99,0.00018991,2]
[321906918,1712607032237,-349.23,0.00018991,2]
[321906919,1712607032246,-640.0,0.00019047,2]
[321906920,1712607032255,-150.0,0.00019049,2]
[321906921,1712607032264,-174.38,0.0001907,2]
[321906922,1712607032274,-250.0,0.00019096,2]
[321906924,1712607032283,-846.64,0.00019112,2]
[321906926,1712607032293,-171.94672162,0.00019376,2]
[321906928,1712607032302,-167.26,0.00019471,2]
[321906930,1712607032312,-779.51255381,0.00019479,2]
[321906933,1712607032324,-2349.93858112,0.0001948,2]
[321906936,1712607032334,-926.88694606,0.00019577,2]
[321906940,1712607032346,-262.46800003,0.00019577,2]
[321906943,1712607032355,-200.03615754,0.00019581,2]
[321906946,1712607032365,-360.18157282,0.00019581,2]
[321906948,1712607032375,-1123.8434254,0.00019581,2]
[321906950,1712607032386,-477.5431381,0.00019644,2]
[321906952,1712607032397,-168.43,0.00019757,2]
[321906954,1712607032407,-1504.61363104,0.00019823,2]
[321906956,1712607032416,-4679.0643,0.00019899,2]
[321906958,1712607032426,-209.4671,0.00019899,2]
[321906960,1712607032435,-48.85042417,0.00019899,2]
[321906964,1712607032464,-384.85127583,0.00019899,2]
[321906966,1712607032473,-3719.6075,0.00019899,2]
[321906968,1712607032483,-167.26,0.00019966,2]
[321906970,1712607032493,-356.82124555,0.00019997,2]
[321906971,1712607032503,-55452.76177929,0.00019999,2]
[321906973,1712607032512,-722.47644417,0.0002,2]
[321906976,1712607032522,-1083.60301757,0.0002,2]
[321906978,1712607032531,-4000.0,0.0002,3]
[321906980,1712607032541,-4000.0,0.0002,2]
[321906981,1712607032551,-155.0,0.0002,2]
[321906984,1712607032561,-160.668329,0.0002,2]
[321906985,1712607032571,-1504.61363104,0.00020052,2]
[321906987,1712607032581,-1045.19799734,0.00020149,2]
[321906989,1712607032591,-241.09,0.0002015,2]
[321906991,1712607032602,-2853.9186,0.00020273,2]
[321906993,1712607032612,-12581.96710512,0.00020372,2]
[321906994,1712607032622,-2500.0,0.00020372,2]
[321906995,1712607032633,-4134.28781114,0.00020373,2]
[321906996,1712607032661,-6103.62201171,0.00020373,2]
[321906997,1712607032674,-312.06068321,0.00020373,2]
[321906998,1712607032686,-460.55939495,0.00020373,2]
[321907028,1712607037928,-2978.18022175,0.00020373,2]
[321907033,1712607038063,-20924.21187724,0.00020373,2]
[321907034,1712607038073,-2210.82375194,0.00020373,2]
[321907035,1712607038083,-1504.61363104,0.00020387,2]
[321907036,1712607038093,-1000.0,0.000204,2]
[321907037,1712607038103,-2210.82375191,0.00020448,2]
[321907038,1712607038113,-598.09157102,0.00020471,2]
[321907039,1712607038122,-159.64934811,0.00020471,2]
[321907040,1712607038132,-327.01032315,0.00020471,2]
[321907041,1712607038142,-53296.01227303,0.00020472,2]
[321907042,1712607038152,-15643.01660587,0.00020472,2]
[321907043,1712607038161,-10919.3133,0.00020473,2]
[321907044,1712607038171,-3463.7092,0.00020473,2]
[321907045,1712607038180,-42323.6598,0.00020473,2]
[321907046,1712607038190,-6545.1193,0.00020473,2]
[321907047,1712607038199,-3817.2553,0.00020473,2]
[321907048,1712607038209,-1000.0,0.00020473,2]
[321907049,1712607038218,-202.0,0.00020484,2]
[321907050,1712607038228,-442.01046879,0.00020499,2]
[321907051,1712607038238,-155.0,0.000205,2]
[321907052,1712607038247,-1000.0,0.000205,2]
[321907053,1712607038256,-1000.0,0.000205,2]
[321907054,1712607038266,-2210.82375191,0.00020524,2]
[321907055,1712607038275,-3238.58312961,0.00020541,2]
[321907056,1712607038284,-261.08077109,0.00020563,2]
[321907058,1712607038294,-562.25,0.00020572,2]
[321907060,1712607038303,-537261.01246,0.00020573,2]
[321907062,1712607038312,-2210.82375191,0.00020599,2]
[321907064,1712607038321,-210.0,0.00020599,2]
[321907066,1712607038331,-218.05286155,0.000206,2]
[321907068,1712607038341,-1302.13006648,0.000206,2]
[321907071,1712607038351,-207.39095855,0.000206,2]
[321907073,1712607038360,-285.75356118,0.000206,2]
[321907075,1712607038370,-153.0060231,0.000206,2]
[321907077,1712607038380,-2220.0,0.000206,2]
[321907078,1712607038391,-10199.51245389,0.000206,2]
[321907080,1712607038403,-38134.53009035,0.00020645,2]
[321907082,1712607038423,-2210.82375191,0.00020674,2]
[321907084,1712607038433,-218.05286153,0.00020675,2]
[321907086,1712607038443,-1504.61363104,0.00020675,2]
[321907087,1712607038453,-500.96396,0.0002069,2]
[321907090,1712607038463,-500.96397,0.0002069,2]
[321907091,1712607038473,-500.96397,0.0002069,2]
[321907093,1712607038482,-500.96397,0.0002069,2]
[321907095,1712607038491,-261.08077109,0.0002069,2]
[321907097,1712607038501,-245000.0,0.000207,2]
[321907099,1712607038509,-408590.73952516,0.000207,2]
[321907109,1712607038868,-3162.00895129,0.000207,2]
[321907110,1712607038930,-20050.72586938,0.000207,2]
[321907111,1712607038942,-38816.59706,0.000207,2]
[321907112,1712607038955,-41655.862484,0.000207,2]
[321907113,1712607038966,-40188.70718728,0.000207,2]
[321907114,1712607038988,-238170.40492289,0.000207,2]
[321907115,1712607038998,-1061.6954,0.000207,2]
[321907116,1712607039007,-2210.82375191,0.00020749,2]
[321907117,1712607039017,-218.05286153,0.0002075,2]
[321907118,1712607039027,-3238.58312961,0.00020763,2]
[321907119,1712607039037,-153.44155691,0.00020788,2]
[321907120,1712607039046,-193.75811988,0.00020798,2]
[321907121,1712607039056,-217.34488466,0.00020798,2]
[321907122,1712607039066,-3372.0620942,0.00020798,2]
[321907123,1712607039076,-817.33423141,0.00020798,2]
[321907124,1712607039086,-4392.60201833,0.00020799,2]
[321907125,1712607039095,-485.36422886,0.000208,2]
[321907126,1712607039106,-39912.4463,0.000208,2]
[321907127,1712607039117,-100000.0,0.000208,2]
[321907128,1712607039127,-1000.0,0.000208,2]
[321907129,1712607039137,-500.0,0.000208,2]
[321907130,1712607039148,-27143.5692,0.000208,2]
[321907131,1712607039158,-306.45062303,0.000208,2]
[321907132,1712607039169,-237.64587195,0.000208,2]
[321907133,1712607039180,-3436.04448359,0.000208,2]
[321907134,1712607039190,-1439.18283064,0.000208,3]
[321907135,1712607039199,-239.90981844,0.000208,2]
[321907136,1712607039210,-153.47156103,0.000208,3]
[321907137,1712607039220,-165.37,0.00020813,2]
[321907138,1712607039230,-160.668329,0.00020822,2]
[321907139,1712607039239,-2210.82375191,0.00020825,2]
[321907140,1712607039248,-218.05286153,0.00020825,2]
[321907141,1712607039257,-1439.18283062,0.00020825,3]
[321907142,1712607039267,-1439.18283062,0.0002085,3]
[321907143,1712607039276,-442.01046878,0.00020867,2]
[321907144,1712607039286,-12581.96710507,0.00020867,2]
[321907145,1712607039296,-153.0060231,0.00020868,2]
[321907146,1712607039306,-1439.18283062,0.00020875,3]
[321907147,1712607039315,-261.08077109,0.0002089,2]
[321907148,1712607039325,-2018.29327895,0.00020898,2]
[321907149,1712607039334,-407.1301357,0.00020898,2]
[321907150,1712607039343,-201.29185456,0.00020898,2]
[321907151,1712607039352,-640.08300789,0.00020898,2]
[321907152,1712607039362,-407.93141682,0.00020898,2]
[321907153,1712607039371,-180.56821029,0.00020898,2]
[321907154,1712607039381,-155.87962039,0.00020898,2]
[321907155,1712607039390,-3675.727,0.000209,2]
[321907156,1712607039400,-1519432.36026359,0.000209,2]
[321907157,1712607039409,-11415.74160047,0.000209,2]
[321907158,1712607039418,-1038.04438346,0.000209,2]
[321907159,1712607039428,-1822118.0500134,0.000209,2]
[321907160,1712607039438,-218.05286153,0.000209,2]
[321907161,1712607039447,-1127.85,0.000209,2]
[321907162,1712607039456,-2210.82375191,0.000209,2]
[321907163,1712607039465,-1439.18283062,0.000209,3]
[321907164,1712607039474,-500.96396,0.000209,2]
[321907165,1712607039483,-500.96397,0.000209,2]
[321907166,1712607039494,-963.49855953,0.00020979,2]
[321907167,1712607039503,-167.38226758,0.00020997,2]
[321907168,1712607039512,-5825.99102334,0.00020997,2]
[321907169,1712607039522,-20855.80609138,0.00020998,2]
[321907170,1712607039531,-155.0,0.00020998,2]
[321907171,1712607039540,-620.31159771,0.00020998,2]
[321907172,1712607039550,-10381.64059871,0.00020998,2]
[321907173,1712607039559,-8366.913355,0.00020998,2]
[321907174,1712607039568,-1125.41559954,0.00020998,2]
[321907175,1712607039578,-165.71746394,0.00020998,2]
[321907176,1712607039587,-446.98536618,0.00020998,2]
[321907177,1712607039596,-3648.818,0.00020998,2]
[321907178,1712607039606,-3611.914,0.00020998,2]
[321907179,1712607039616,-1005555.19948055,0.00021,2]
[321907180,1712607039629,-2172145.1858115,0.00021,2]
[321907181,1712607039638,-133467.58656259,0.00021,2]
[321907182,1712607039651,-121477.56221265,0.00021,2]
[321907318,1712607041094,-718.55500029,0.00021,2]
[321907319,1712607041121,-2646.60596042,0.00021,2]
[321907320,1712607041132,-17232.60116287,0.00021,2]
[321907322,1712607041151,-466.42472754,0.00021,2]
[321907327,1712607041172,-1538.7074705,0.00021,2]
[321907329,1712607041271,-443.43736833,0.00021,2]
[321907348,1712607042992,-4955.70075,0.00021,2]
[321907359,1712607046033,-179304.1716,0.00020372,2]
[321907360,1712607046042,-153.44155691,0.0002079,2]
[321907361,1712607046053,-150.01,0.00020997,2]
[321907362,1712607046062,-3297.72474972,0.00020997,2]
[321907363,1712607046072,-155.0,0.00020999,2]
[321907364,1712607046081,-500.0,0.00020999,2]
[321907365,1712607046090,-403.75834071,0.00020999,2]
[321907366,1712607046099,-99734.58931788,0.00021,2]
[321907367,1712607046109,-810.2,0.00021,2]
[321907368,1712607046118,-828503.39382678,0.00021,2]
[321907369,1712607046134,-810.99659996,0.00021,2]
[321907370,1712607046153,-830.99324208,0.00021,2]
[321907371,1712607046310,-115149.33366099,0.00021,2]
[321907376,1712607046426,-155.0,0.00020996,2]
[321907377,1712607046436,-5044.76394511,0.00021,2]
[321907378,1712607046448,-9846.03322882,0.00021,2]
[321907379,1712607046460,-1049.700003,0.00021,2]
[321907380,1712607046472,-450.180002,0.00021,2]
[321907381,1712607046484,-705.8369005,0.00021,2]
[321907382,1712607046495,-3703.00000001,0.00021,2]
[321907383,1712607046627,-270832.33069296,0.00021,2]
[321907384,1712607046651,-14351.81911897,0.00021,2]
[321907385,1712607046677,-3000.57140606,0.00021,2]
[321907386,1712607046693,-548579.43274169,0.00021,2]
[321907387,1712607046702,-54608.4677216,0.00021,2]
[321907388,1712607046797,-5830.42242107,0.00021,2]
[321907389,1712607046806,-550.0,0.00021,3]
[321907390,1712607046816,-4105.0,0.00021024,2]
[321907391,1712607046825,-10199.51245383,0.00021041,2]
[321907392,1712607046836,-360.0,0.00021123,2]
[321907393,1712607046846,-153.0060231,0.00021135,2]
[321907394,1712607046855,-3238.58312962,0.00021227,2]
[321907395,1712607046865,-442.01046878,0.00021235,2]
[321907396,1712607046878,-1504.61363104,0.00021308,2]
[321907397,1712607046888,-12581.96710507,0.00021363,2]
[321907398,1712607046898,-846.64,0.00021376,2]
[321907399,1712607046908,-153.0060231,0.00021403,2]
[321907400,1712607046918,-1504.61363107,0.00021407,2]
[321907402,1712607046928,-640.0,0.00021428,2]
[321907403,1712607046937,-10199.51245383,0.00021481,2]
[321907404,1712607046946,-167.51,0.00021502,2]
[321907405,1712607046957,-241.09,0.0002152,2]
[321907406,1712607046967,-171.06,0.00021521,2]
[321907407,1712607046977,-5875.98,0.00021545,2]
[321907408,1712607046986,-442.01046878,0.00021603,2]
[321907409,1712607046995,-160.668329,0.00021644,2]
[321907410,1712607047004,-153.0060231,0.00021671,2]
[321907411,1712607047014,-12581.96710507,0.00021858,2]
[321907412,1712607047023,-151.0,0.00021918,2]
[321907413,1712607047033,-167.805114,0.00021918,2]
[321907414,1712607047042,-250.0,0.00021918,2]
[321907415,1712607047052,-151.0,0.00021918,2]
[321907416,1712607047061,-151.0,0.00021918,2]
[321907417,1712607047070,-151.0,0.00021918,2]
[321907418,1712607047080,-151.0,0.00021918,2]
[321907419,1712607047088,-151.0,0.00021918,2]
[321907421,1712607047098,-151.0,0.00021918,2]
[321907422,1712607047107,-282.276331,0.00021918,2]
[321907423,1712607047116,-151.0,0.00021918,2]
[321907424,1712607047126,-151.0,0.00021918,2]
[321907425,1712607047135,-291.951989,0.00021918,2]
[321907426,1712607047145,-151.0,0.00021918,2]
[321907427,1712607047156,-151.0,0.00021918,2]
[321907428,1712607047166,-151.0,0.00021918,2]
[321907429,1712607047175,-151.0,0.00021918,2]
[321907430,1712607047184,-151.0,0.00021918,2]
[321907431,1712607047194,-151.0,0.00021918,2]
[321907432,1712607047203,-227.488275,0.00021918,2]
[321907433,1712607047213,-151.0,0.00021918,2]
[321907434,1712607047222,-151.0,0.00021918,2]
[321907435,1712607047232,-250.0,0.00021918,2]
[321907436,1712607047242,-151.0,0.00021918,2]
[321907437,1712607047251,-189.160298,0.00021918,2]
[321907438,1712607047260,-151.0,0.00021918,2]
[321907439,1712607047270,-293.147393,0.00021918,2]
[321907440,1712607047371,-151.0,0.00021918,2]
[321907441,1712607047381,-151.0,0.00021918,2]
[321907442,1712607047390,-151.0,0.00021918,2]
[321907443,1712607047399,-2082.221984,0.00021918,2]
[321907444,1712607047408,-2082.221984,0.00021918,2]
[321907445,1712607047417,-2082.221984,0.00021918,2]
[321907446,1712607047426,-2082.221984,0.00021918,2]
[321907447,1712607047436,-192.038127,0.00021918,7]
[321907448,1712607047446,-10199.51245383,0.00021922,2]
[321907449,1712607047455,-153.0060231,0.00021938,2]
[321907450,1712607047464,-442.01046878,0.00021972,2]
[321907451,1712607047473,-446.33209374,0.00022,2]
[321907452,1712607047482,-783.43698561,0.00022,2]
[321907453,1712607047492,-153.0060231,0.00022206,2]
[321907454,1712607047501,-442.01046878,0.0002234,2]
[321907455,1712607047510,-12581.96710507,0.00022354,2]
[321907456,1712607047519,-10199.51245383,0.00022363,2]
[321907457,1712607047529,-1127.85,0.000224,2]
[321907458,1712607047538,-160.668329,0.00022466,2]
[321907459,1712607047547,-153.0060231,0.00022473,2]
[321907460,1712607047556,-150.0,0.000226,2]
[321907461,1712607047565,-240.0,0.00022659,2]
[321907462,1712607047575,-306.45062302,0.00022679,2]
[321907463,1712607047585,-237.64587194,0.00022679,2]
[321907464,1712607047593,-3436.04448359,0.00022679,2]
[321907465,1712607047602,-239.90981842,0.00022679,2]
[321907466,1712607047611,-153.47156102,0.00022679,4]
[321907467,1712607047620,-442.01046878,0.00022708,2]
[321907468,1712607047630,-153.0060231,0.00022741,2]
[321907469,1712607047639,-348.87,0.00022796,2]
[321907470,1712607047649,-417.24,0.00022796,2]
[321907471,1712607047660,-10199.51245383,0.00022803,2]
[321907472,1712607047670,-12581.96710507,0.00022849,2]
[321907473,1712607047680,-76000.0,0.00023,2]
[321907474,1712607047690,-600.0,0.00023,3]
[321907475,1712607047700,-153.0060231,0.00023009,2]
[321907476,1712607047710,-153.80423254,0.00023021,2]
[321907477,1712607047720,-442.01046878,0.00023076,2]
[321907478,1712607047730,-150.0,0.000231,2]
[321907479,1712607047739,-182.62371666,0.00023111,2]
[321907480,1712607047750,-161.20015608,0.00023125,2]
[321907481,1712607047761,-152.47404875,0.00023191,2]
[321907482,1712607047771,-10199.51245383,0.00023244,2]
[321907483,1712607047781,-153.0060231,0.00023276,2]
[321907484,1712607047791,-160.668329,0.00023288,2]
[321907485,1712607047800,-12581.96710507,0.00023345,2]
[321907486,1712607047809,-150.83843771,0.00023373,2]
[321907487,1712607047819,-158.67430447,0.00023398,2]
[321907488,1712607047829,-810.2,0.000234,2]
[321907489,1712607047839,-442.01046878,0.00023444,2]
[321907490,1712607047849,-152.33024552,0.00023468,2]
[321907491,1712607047859,-360.0,0.0002347,2]
[321907492,1712607047869,-153.0060231,0.00023544,2]
[321907493,1712607047882,-150.83843771,0.00023549,2]
[321907494,1712607047893,-182.62371666,0.00023598,2]
[321907495,1712607047904,-150.0,0.000236,2]
[321907496,1712607047915,-162.07,0.00023618,2]
[321907497,1712607047926,-5989.60431857,0.00023624,2]
[321907498,1712607047936,-846.64,0.0002364,2]
[321907499,1712607047947,-797.51529173,0.00023683,2]
[321907500,1712607047957,-10199.51245383,0.00023684,2]
[321907501,1712607047967,-153.38811505,0.00023687,2]
[321907502,1712607047977,-152.42546696,0.0002373,2]
[321907503,1712607047986,-1127.85,0.000238,2]
[321907504,1712607047997,-640.0,0.00023808,2]
[321907505,1712607048007,-153.0060231,0.00023812,2]
[321907506,1712607048017,-442.01046878,0.00023812,2]
[321907507,1712607048027,-12581.96710507,0.0002384,2]
[321907508,1712607048037,-177.86450318,0.00023984,2]
[321907509,1712607048047,-365.10503971,0.00024,2]
[321907510,1712607048057,-1361.75,0.00024,2]
[321907511,1712607048066,-153.38811505,0.0002403,2]
[321907512,1712607048077,-153.0060231,0.00024079,2]
[321907513,1712607048087,-152.47404875,0.00024089,2]
[321907514,1712607048097,-150.0,0.000241,2]
[321907515,1712607048108,-160.668329,0.0002411,2]
[321907516,1712607048119,-10199.51245383,0.00024125,2]
[321907517,1712607048129,-442.01046878,0.0002418,2]
[321907518,1712607048139,-177.86450318,0.00024186,2]
[321907519,1712607048151,-153.38811505,0.00024206,2]
[321907520,1712607048161,-150.0,0.00024236,2]
[321907521,1712607048171,-487.39,0.00024279,2]
[321907522,1712607048182,-5875.98,0.00024285,2]
[321907523,1712607048192,-150.83843771,0.00024311,2]
[321907524,1712607048202,-1000.0,0.00024328,2]
[321907525,1712607048213,-863.44420511,0.00024329,2]
[321907526,1712607048223,-2000.0,0.00024329,2]
[321907527,1712607048234,-200.0,0.00024329,2]
[321907528,1712607048244,-744.35381165,0.00024329,2]
[321907529,1712607048254,-12581.96710507,0.00024336,2]
[321907530,1712607048264,-153.0060231,0.00024347,2]
[321907531,1712607048275,-153.38811505,0.00024399,2]
[321907532,1712607048285,-166.66666666,0.00024448,2]
[321907533,1712607048294,-672953.78203863,0.00024457,2]
[321907534,1712607064625,150.5,0.0002139,15]
[321907535,1712607065061,150.5,0.0002138,15]
[321907536,1712607065520,150.5,0.0002137,15]
[321907537,1712607076470,667.46,0.00024329,15]
[321907538,1712607087819,544.15012456,0.00024,15]
[321907539,1712607090570,232.419185,0.00016717,2]
[321907540,1712607119466,155.0,0.00018804,5]
[321907541,1712607133278,245.0,0.00018806,5]
[321907543,1712607183245,150.5,0.00024647,15]
[321907544,1712607183718,150.5,0.00024637,15]
[321907545,1712607184203,150.5,0.00024627,15]
[321907546,1712607193241,351.52183684,0.00020471,5]
[321907547,1712607195690,-155.0,0.00018801,2]
[321907548,1712607195710,-779.51255381,0.00018802,2]
[321907549,1712607195731,-155.0,0.00018803,2]
[321907550,1712607195751,-155.0,0.00018803,2]
[321907551,1712607195770,-155.0,0.00018805,2]
[321907552,1712607195793,-400.0,0.00018806,2]
[321907553,1712607195814,-164.10559287,0.00019898,2]
[321907554,1712607202830,-2636.38185332,0.00020273,2]
[321907557,1712607271063,104104.0,0.000297,120]
[321907558,1712607286358,501.04419213,0.00026,20]
[321907559,1712607528393,860.38,0.00017827,2]
[321907561,1712607611357,150.0,0.0001792,2]
[321907562,1712607670859,625.74,0.00024329,15]
[321907563,1712607762226,5853.10421278,0.00025,120]
[321907568,1712608038226,817.36,0.00016939,2]
[321907577,1712608143206,169.14,0.00024642,15]
[321907578,1712608143704,157.38,0.00024642,15]
[321907579,1712608144120,150.5,0.00024921,15]
[321907580,1712608144575,150.5,0.00024911,15]
[321907581,1712608145056,150.5,0.00024901,15]
[321907667,1712608165379,1369.52,0.00024329,15]
[321907680,1712608223471,150.0,0.00024207,15]
[321907704,1712608232138,-572.1716,0.00018804,2]
[321907705,1712608232150,-513.83443579,0.00018804,2]
[321907706,1712608232328,-364.18813852,0.00018804,2]
[321907707,1712608232340,-986.46582569,0.00018804,2]
[321907708,1712608232349,-100.64317748,0.00018805,2]
[321907709,1712608232361,-54.35682252,0.00018805,2]
[321907710,1712608232371,-629.08471578,0.00018806,2]
[321907711,1712608232381,-250.0,0.00018808,2]
[321907712,1712608232390,-164.10559287,0.0001884,2]
[321907713,1712608232400,-180.0,0.00018844,2]
[321907714,1712608232409,-240.12,0.00018936,2]
[321907715,1712608232419,-696.16,0.00018936,2]
[321907716,1712608232428,-2751.0,0.00018945,2]
[321907717,1712608232438,-7208.59414809,0.00018947,2]
[321907718,1712608232457,-403.19999991,0.00018947,2]
[321907719,1712608232477,-1890.71799203,0.00018947,2]
[321907721,1712608232524,-2881.45068609,0.00018947,2]
[321907722,1712608232538,-2919.94717388,0.00018947,2]
[321907723,1712608232548,-1136.21229943,0.00018959,2]
[321907724,1712608238493,-468.65770057,0.00018959,2]
[321907726,1712608238502,-222.18468056,0.00019,2]
[321907728,1712608238514,-777.81531944,0.00019,2]
[321907730,1712608238524,-817.36,0.00019203,2]
[321907732,1712608238533,-392.63,0.00019687,2]
[321907734,1712608238542,-392.63,0.00019692,2]
[321907736,1712608238551,-392.63,0.00019697,2]
[321907738,1712608238560,-392.63,0.00019702,2]
[321907740,1712608238569,-114.06692687,0.00019708,2]
[321907742,1712608238581,-278.56307313,0.00019708,2]
[321907744,1712608238590,-392.63,0.00019713,2]
[321907746,1712608238600,-44.50692687,0.00019716,2]
[321907749,1712608238611,-500.33163713,0.00019716,2]
[321907753,1712608238647,-311.161436,0.00019716,2]
[321907755,1712608238656,-392.63,0.00019718,2]
[321907757,1712608238666,-1773.32174823,0.00019718,2]
[321907759,1712608238678,-428.46825177,0.00019718,2]
[321907761,1712608238689,-392.63,0.00019723,2]
[321907763,1712608238698,-392.63,0.00019728,2]
[321907765,1712608238707,-392.63,0.00019733,2]
[321907767,1712608238717,-392.63,0.00019739,2]
[321907769,1712608238726,-392.63,0.00019744,2]
[321907771,1712608238735,-392.63,0.00019749,2]
[321907773,1712608238744,-392.63,0.00019754,2]
[321907775,1712608238754,-392.63,0.00019759,2]
[321907777,1712608238763,-392.63,0.00019765,2]
[321907779,1712608238772,-392.63,0.0001977,2]
[321907781,1712608238782,-392.63,0.00019775,2]
[321907783,1712608238791,-392.63,0.0001978,2]
[321907785,1712608238800,-68.89851442,0.00019785,2]
[321907793,1712608238865,-323.73148558,0.00019785,2]
[321907795,1712608238874,-172.9,0.00019813,2]
[321907798,1712608238884,-2500.0,0.00020172,2]
[321907800,1712608238893,-617.2134084,0.00020172,2]
[321907802,1712608238906,-77.07164651,0.00020172,2]
[321907804,1712608238916,-353.60837504,0.00020172,2]
[321907806,1712608238925,-3272.42407361,0.00020173,2]
[321907808,1712608238934,-178.84,0.00020261,2]
[321907810,1712608238943,-178.84,0.00020261,2]
[321907812,1712608238953,-117416.77811749,0.00020271,2]
[321907814,1712608238964,-823.4450615,0.00020271,2]
[321907816,1712608238975,-532.80490575,0.00020271,2]
[321907819,1712608238990,-4473.56207737,0.00020271,2]
[321907821,1712608239001,-451.57864314,0.00020271,2]
[321907823,1712608239012,-302.52178472,0.00020271,2]
[321907826,1712608239037,-640.72651795,0.00020271,2]
[321907827,1712608239073,-42580.57718118,0.00020271,2]
[321907841,1712608240462,-3620.8167592,0.00020271,2]
[321907847,1712608243112,-360.75634,0.00020171,2]
[321907848,1712608243669,-3352.13366,0.00020171,2]
[321907849,1712608243680,-500.0,0.0002027,2]
[321907850,1712608243689,-243.9856089,0.0002027,2]
[321907853,1712608243929,-2.80239104,0.0002027,2]
[321907854,1712608243938,-56.35854703,0.00020271,2]
[321907855,1712608243951,-9241.33782,0.00020271,2]
[321907857,1712608243994,-7193.3936157,0.00020271,2]
[321907859,1712608246216,-3580.95,0.00020271,2]
[321907860,1712608246227,-47073.37176817,0.00020271,2]
[321907864,1712608263379,150.5,0.00024642,15]
[321907865,1712608263422,150.5,0.00024642,15]
[321907866,1712608263842,150.5,0.00024632,15]
[321907867,1712608263886,150.5,0.00024632,15]
[321907868,1712608264354,150.5,0.00024622,15]
[321907869,1712608264384,150.5,0.00024622,15]
[321907870,1712608503705,150.5,0.00024511,15]